fUST/lending_fUST_20250927
["ID","MTS","AMOUNT","RATE_DAILY","PERIOD"]
[387835258,1758909048366,-480.0,0.00046027,30]
[387835259,1758909048375,-480.0,0.00046027,30]
[387835260,1758909048389,-480.0,0.00046027,30]
[387835261,1758909048399,-480.0,0.00046027,30]
[387835262,1758909048409,-480.0,0.00046027,30]
[387835263,1758909048420,-480.0,0.00046027,30]
[387835264,1758909048430,-480.0,0.00046027,30]
[387835265,1758909048441,-480.0,0.00046027,12]
[387835266,1758909048450,-480.0,0.00046027,30]
[387835267,1758909048460,-480.0,0.00046027,30]
[387835268,1758909048470,-480.0,0.00046027,30]
[387835269,1758909048480,-480.0,0.00046027,30]
[387835270,1758909048489,-480.0,0.00046027,30]
[387835271,1758909048499,-480.0,0.00046027,30]
[387835272,1758909048508,-821.48,0.00046027,30]
[387835273,1758909048518,-480.0,0.00046027,30]
[387835274,1758909048528,-480.0,0.00046027,30]
[387835275,1758909048538,-480.0,0.00046027,30]
[387835276,1758909048547,-480.0,0.00046027,30]
[387835277,1758909048556,-480.0,0.00046027,30]
[387835278,1758909048565,-480.0,0.00046027,30]
[387835279,1758909048577,-210.73893496,0.00046027,30]
[387835280,1758909048585,-480.0,0.00046027,30]
[387835281,1758909048595,-364.38514609,0.00046027,30]
[387835282,1758909048603,-480.0,0.00046027,30]
[387835283,1758909048610,-480.0,0.00046027,30]
[387835284,1758909048617,-480.0,0.00046027,30]
[387835285,1758909048625,-480.0,0.00046027,30]
[387835286,1758909048633,-480.0,0.00046027,30]
[387835287,1758909048642,-480.0,0.00046027,30]
[387835288,1758909048713,-480.0,0.00046027,30]
[387835289,1758909048726,-480.0,0.00046027,30]
[387835290,1758909048736,-480.0,0.00046027,30]
[387835291,1758909048745,-480.0,0.00046027,30]
[387835292,1758909048755,-480.0,0.00046027,30]
[387835293,1758909048766,-480.0,0.00046027,30]
[387835294,1758909048776,-480.0,0.00046027,30]
[387835295,1758909048786,-480.0,0.00046027,30]
[387835296,1758909048796,-480.0,0.00046027,30]
[387835297,1758909048806,-480.0,0.00046027,30]
[387835298,1758909048815,-480.0,0.00046027,30]
[387835299,1758909048825,-480.0,0.00046027,30]
[387835300,1758909048834,-483.72858791,0.00046027,30]
[387835301,1758909048843,-480.0,0.00046027,30]
[387835302,1758909048852,-480.0,0.00046027,30]
[387835303,1758909048862,-216.1334439,0.00046027,30]
[387835304,1758909048871,-480.0,0.00046027,30]
[387835305,1758909048881,-538.46,0.00046027,30]
[387835306,1758909048890,-476.76429691,0.00046027,30]
[387835307,1758909048899,-480.0,0.00046027,30]
[387835308,1758909048908,-290.57555385,0.00046027,30]
[387835309,1758909048917,-480.0,0.00046027,30]
[387835310,1758909048927,-480.0,0.00046027,30]
[387835311,1758909048936,-480.0,0.00046027,30]
[387835312,1758909048945,-480.0,0.00046027,30]
[387835313,1758909048955,-480.0,0.00046027,30]
[387835314,1758909048965,-480.0,0.00046027,30]
[387835315,1758909048974,-481.02977446,0.00046027,30]
[387835316,1758909048984,-480.0,0.00046027,30]
[387835317,1758909048993,-602.63,0.00046027,30]
[387835318,1758909049003,-480.0,0.00046027,30]
[387835319,1758909049013,-480.0,0.00046027,30]
[387835320,1758909049023,-541.17494909,0.00046027,30]
[387835321,1758909049032,-480.0,0.00046027,30]
[387835322,1758909049042,-480.0,0.00046027,30]
[387835323,1758909049051,-480.57946496,0.00046027,30]
[387835324,1758909049061,-480.0,0.00046027,30]
[387835325,1758909049070,-480.0,0.00046027,30]
[387835326,1758909049079,-464.03461935,0.00046027,30]
[387835327,1758909049088,-480.0,0.00046027,30]
[387835328,1758909049098,-480.0,0.00046027,30]
[387835329,1758909049108,-480.0,0.00046027,30]
[387835330,1758909049117,-480.0,0.00046027,30]
[387835331,1758909049127,-480.0,0.00046027,30]
[387835332,1758909049136,-480.64466732,0.00046027,30]
[387835333,1758909049146,-498.82,0.00046027,30]
[387835334,1758909049156,-480.0,0.00046027,30]
[387835335,1758909049165,-480.0,0.00046027,30]
[387835336,1758909049175,-480.0,0.00046027,30]
[387835337,1758909049185,-480.0,0.00046027,30]
[387835338,1758909049196,-480.0,0.00046027,30]
[387835339,1758909049206,-483.49278146,0.00046027,30]
[387835340,1758909049216,-480.0,0.00046027,30]
[387835341,1758909049226,-480.0,0.00046027,30]
[387835342,1758909049236,-480.0,0.00046027,30]
[387835343,1758909049245,-480.0,0.00046027,30]
[387835344,1758909049255,-480.0,0.00046027,30]
[387835345,1758909049265,-1088.09,0.00046027,30]
[387835346,1758909049274,-480.0,0.00046027,30]
[387835347,1758909049283,-480.0,0.00046027,30]
[387835348,1758909049293,-480.0,0.00046027,30]
[387835349,1758909049304,-480.0,0.00046027,30]
[387835350,1758909049314,-598.64,0.00046027,30]
[387835351,1758909049324,-579.44,0.00046027,30]
[387835352,1758909049334,-480.0,0.00046027,30]
[387835353,1758909049343,-480.0,0.00046027,30]
[387835354,1758909049352,-481.47528046,0.00046027,30]
[387835355,1758909049363,-480.0,0.00046027,30]
[387835356,1758909049372,-481.35010906,0.00046027,30]
[387835357,1758909049382,-314.97920984,0.00046027,30]
[387835358,1758909049404,-165.02079016,0.00046027,30]
[387835359,1758909049414,-420.11920984,0.00046027,30]
[387835369,1758909124398,524.16246541,0.000199,2]
[387835370,1758909124539,524.16246541,0.00024316,2]
[387835371,1758909125111,524.16246541,0.00022844,2]
[387835372,1758909125217,524.16246541,0.00021372,2]
[387835373,1758909145217,-2000.01,0.00024703,2]
[387835386,1758909162668,753.00485063,0.00024703,2]
[387835389,1758909266819,-5000.0,0.00024703,13]
[387835390,1758909305868,-749.49418919,0.000199,2]
[387835391,1758909475244,267.75633026,0.000199,2]
[387835392,1758909476391,-267.75633026,0.00022949,2]
[387835393,1758909589748,186.0,8.8e-07,2]
[387835394,1758909654090,-637.51294004,0.000199,2]
[387835395,1758909676837,160.0,0.00021372,2]
[387835396,1758909679288,5000.0,0.00021372,2]
[387835397,1758909701275,160.0,0.00021372,2]
[387835398,1758909701841,4680.01,0.00021372,2]
[387835399,1758909701862,319.99,0.00021372,2]
[387835400,1758909725087,5000.0,0.00021372,2]
[387835401,1758909733987,-637.51294003,0.00021372,2]
[387835402,1758909734015,-637.51294003,0.00022844,2]
[387835403,1758909742270,-637.51294003,0.00024316,2]
[387835405,1758909756924,-5000.0,0.00024703,2]
[387835407,1758909774020,-5000.0,0.00024703,13]
[387835409,1758909797611,-5000.0,0.00024703,13]
[387835410,1758909802998,0.01,0.00024703,2]
[387835411,1758909803022,4999.99,0.00024703,2]
[387835412,1758909827791,-623.02599901,0.000199,2]
[387835413,1758909827820,-623.02599887,0.00024316,2]
[387835414,1758909827848,-2507.90600424,0.00024703,13]
[387835415,1758909828292,-623.02599887,0.00021372,2]
[387835416,1758909828321,-623.02599887,0.00022844,2]
[387835417,1758909828351,-2492.09399576,0.00024703,13]
[387835419,1758909854304,-5000.0,0.00024703,2]
[387835420,1758909874183,-3666.69360249,0.00024703,13]
[387835421,1758909904174,-999.99,0.00024703,13]
[387835431,1758910023510,-630.41037076,0.000199,2]
[387835432,1758910027577,258.36363472,0.00021372,2]
[387835436,1758910168127,-340.51138769,0.00021372,2]
[387835437,1758910190375,272.14033672,0.000199,2]
[387835438,1758910193800,-272.14033672,0.00022949,2]
[387835439,1758910204236,-160.0,0.00024316,2]
[387835440,1758910214212,-300.0,0.00024699,2]
[387835441,1758910214240,-300.0,0.00024699,2]
[387835442,1758910214266,-300.0,0.00024699,2]
[387835443,1758910214294,-300.0,0.00024699,2]
[387835444,1758910214321,-300.0,0.00024699,2]
[387835445,1758910214348,-1200.0,0.00024699,2]
[387835446,1758910215887,4600.01,0.00024316,2]
[387835447,1758910215908,399.99,0.00024316,2]
[387835448,1758910224087,-300.0,0.000247,2]
[387835449,1758910224115,-300.0,0.000247,2]
[387835450,1758910224142,-300.0,0.000247,2]
[387835451,1758910224275,-300.0,0.000247,2]
[387835452,1758910224502,318.14650282,0.00024699,2]
[387835458,1758910232526,-183.565392,0.0002497,2]
[387835459,1758910232535,-200.0,0.00025,7]
[387835460,1758910232545,-224.57227828,0.00025425,16]
[387835461,1758910232554,-5000.0,0.00025467,2]
[387835462,1758910232563,-1000.0,0.00025478,2]
[387835463,1758910232573,-272.14033672,0.00025998,4]
[387835464,1758910232582,-1200.0,0.00026001,2]
[387835465,1758910232591,-1573.591806,0.00026002,2]
[387835466,1758910232600,-539.9229619,0.00026017,2]
[387835467,1758910232610,-194.67794271,0.0002631,2]
[387835468,1758910232618,-500.0,0.0002641,2]
[387835469,1758910232627,-638.63178148,0.0002641,2]
[387835470,1758910232637,-500.0,0.0002641,2]
[387835472,1758910232646,-500.0,0.0002641,2]
[387835473,1758910232655,-500.0,0.0002641,2]
[387835474,1758910232665,-500.0,0.0002641,2]
[387835475,1758910232674,-500.0,0.0002641,2]
[387835476,1758910232683,-500.0,0.0002641,2]
[387835477,1758910232692,-500.0,0.0002641,2]
[387835478,1758910232701,-455.98307161,0.0002641,2]
[387835479,1758910232710,-500.0,0.0002641,2]
[387835480,1758910232719,-500.0,0.0002641,2]
[387835481,1758910232730,-295.9657081,0.0002641,2]
[387835482,1758910232739,-500.0,0.0002641,2]
[387835483,1758910232748,-607.75170227,0.0002641,2]
[387835484,1758910232757,-500.0,0.0002641,2]
[387835485,1758910232766,-500.0,0.0002641,2]
[387835487,1758910232775,-500.0,0.0002641,2]
[387835489,1758910232784,-500.0,0.0002641,2]
[387835491,1758910232793,-500.0,0.0002641,2]
[387835493,1758910232802,-382.28901574,0.0002641,2]
[387835495,1758910232814,-117.71098426,0.0002641,2]
[387835497,1758910232823,-500.0,0.0002641,2]
[387835498,1758910232833,-1478.29776335,0.00026411,2]
[387835499,1758910232841,-500.0,0.00026473,2]
[387835500,1758910232850,-500.0,0.00026473,2]
[387835501,1758910232860,-500.0,0.00026473,2]
[387835502,1758910232869,-500.0,0.00026473,2]
[387835503,1758910232878,-500.0,0.00026473,2]
[387835504,1758910232888,-501.16333799,0.00026473,2]
[387835505,1758910232897,-433.55069695,0.00026473,2]
[387835506,1758910232906,-500.0,0.00026473,2]
[387835507,1758910232916,-500.0,0.00026473,2]
[387835508,1758910232925,-503.00523914,0.00026473,2]
[387835509,1758910232935,-501.08592327,0.00026473,2]
[387835510,1758910232944,-500.0,0.00026473,2]
[387835511,1758910232953,-500.0,0.00026473,2]
[387835512,1758910232962,-500.0,0.00026473,2]
[387835513,1758910232972,-437.28681267,0.00026473,2]
[387835514,1758910232983,-500.0,0.00026473,2]
[387835515,1758910232995,-500.0,0.00026473,2]
[387835516,1758910233004,-500.0,0.00026573,2]
[387835517,1758910233013,-500.0,0.00026573,2]
[387835518,1758910233022,-500.0,0.00026573,2]
[387835519,1758910233034,-183.09612358,0.00026573,2]
[387835520,1758910233043,-500.0,0.00026573,2]
[387835521,1758910233053,-504.24159242,0.00026573,2]
[387835522,1758910233063,-500.0,0.00026573,2]
[387835523,1758910233072,-944.74011584,0.00026748,2]
[387835524,1758910233082,-420.0,0.00026766,2]
[387835525,1758910233091,-420.0,0.00026766,2]
[387835526,1758910233101,-420.0,0.00026766,2]
[387835527,1758910233110,-420.0,0.00026766,2]
[387835528,1758910233119,-500.0,0.00026847,2]
[387835529,1758910233129,-229.18,0.00026848,2]
[387835530,1758910233138,-1680.0,0.00026887,2]
[387835531,1758910233147,-222.96204447,0.0002702,2]
[387835533,1758910233157,-449.65007108,0.0002702,2]
[387835535,1758910233167,-500.0,0.0002702,2]
[387835537,1758910233176,-500.0,0.0002702,2]
[387835538,1758910233186,-500.0,0.0002702,2]
[387835539,1758910233196,-278.02929208,0.0002702,2]
[387835540,1758910233208,-221.97070792,0.0002702,2]
[387835541,1758910233217,-500.0,0.0002702,2]
[387835542,1758910233227,-271.42322717,0.0002702,2]
[387835543,1758910233329,-228.57677283,0.0002702,2]
[387835544,1758910233339,-500.0,0.0002702,2]
[387835545,1758910233349,-500.0,0.0002702,2]
[387835546,1758910233358,-500.0,0.0002702,2]
[387835547,1758910233368,-500.0,0.0002702,2]
[387835548,1758910233378,-500.0,0.0002702,2]
[387835549,1758910233388,-500.0,0.0002702,2]
[387835550,1758910233399,-1000.0,0.00027021,2]
[387835551,1758910233409,-1000.0,0.00027021,2]
[387835552,1758910233418,-500.0,0.00027021,2]
[387835553,1758910233427,-501.1278588,0.00027021,2]
[387835554,1758910233437,-1000.0,0.00027021,2]
[387835555,1758910233446,-1000.0,0.00027021,2]
[387835556,1758910233455,-1000.0,0.00027021,2]
[387835557,1758910233465,-1000.0,0.00027021,2]
[387835558,1758910233475,-1000.0,0.00027021,2]
[387835559,1758910233485,-1000.0,0.00027021,2]
[387835560,1758910233494,-501.34391062,0.00027021,2]
[387835561,1758910233505,-1000.0,0.00027021,2]
[387835562,1758910233519,-178.74,0.000271,15]
[387835563,1758910233529,-453.90998057,0.00027121,2]
[387835564,1758910233539,-280.38835653,0.00027121,2]
[387835565,1758910233548,-1012.24691548,0.00027121,2]
[387835566,1758910233559,-504.03477072,0.00027121,2]
[387835567,1758910233569,-1000.0,0.00027121,2]
[387835568,1758910233580,-229.18,0.00027122,2]
[387835569,1758910233590,-610.719106,0.00027179,2]
[387835570,1758910233600,-163.923,0.000272,15]
[387835571,1758910233610,-175.37473221,0.000272,15]
[387835572,1758910233621,-500.0,0.00027273,2]
[387835573,1758910233631,-160.0,0.00027304,2]
[387835574,1758910233641,-198.91630416,0.00027305,2]
[387835575,1758910233651,-500.0,0.00027305,2]
[387835576,1758910233662,-151.0,0.00027305,2]
[387835577,1758910233672,-500.0,0.00027305,2]
[387835578,1758910233683,-151.0,0.00027305,2]
[387835579,1758910233693,-500.0,0.00027305,2]
[387835580,1758910233703,-642.0,0.00027305,2]
[387835581,1758910233714,-230.64153186,0.00027305,2]
[387835582,1758910233724,-151.0,0.00027305,2]
[387835583,1758910233736,-151.0,0.00027305,2]
[387835584,1758910233746,-151.0,0.00027305,2]
[387835585,1758910233756,-219.23198078,0.00027305,2]
[387835586,1758910233768,-417.15472785,0.00027305,2]
[387835587,1758910233778,-160.0,0.00027305,2]
[387835588,1758910233788,-160.0,0.00027305,2]
[387835589,1758910233798,-233.71402077,0.00027306,2]
[387835590,1758910233808,-229.19475481,0.00027396,2]
[387835591,1758910233818,-160.0,0.00027467,2]
[387835592,1758910233828,-1500.0,0.00027568,5]
[387835593,1758910233838,-259.28911623,0.00027568,5]
[387835594,1758910233848,-1500.0,0.00027568,5]
[387835595,1758910233858,-1500.0,0.00027568,5]
[387835596,1758910233869,-512.16892121,0.00027568,5]
[387835597,1758910233879,-296.33432936,0.00027568,5]
[387835598,1758910233890,-1500.0,0.00027568,5]
[387835599,1758910233901,-1500.0,0.00027568,5]
[387835600,1758910233911,-1351.24793627,0.00027568,5]
[387835601,1758910233921,-228.54686471,0.00027573,5]
[387835602,1758910233931,-150.0,0.00027573,5]
[387835603,1758910233942,-500.0,0.00027573,5]
[387835604,1758910233952,-646.21219898,0.00027573,5]
[387835605,1758910233975,-478.16421637,0.00027573,5]
[387835606,1758910233997,-500.0,0.00027573,5]
[387835607,1758910234017,-500.0,0.00027573,5]
[387835608,1758910234037,-500.0,0.00027573,5]
[387835609,1758910234057,-500.0,0.00027573,5]
[387835610,1758910234076,-501.00712413,0.00027573,5]
[387835611,1758910234095,-500.0,0.00027573,5]
[387835612,1758910234110,-500.0,0.00027573,5]
[387835613,1758910234127,-500.0,0.00027573,5]
[387835614,1758910234145,-500.0,0.00027573,5]
[387835616,1758910234166,-500.0,0.00027573,5]
[387835617,1758910234182,-500.0,0.00027579,2]
[387835618,1758910234199,-151.0,0.00027579,2]
[387835619,1758910234215,-500.0,0.00027579,2]
[387835620,1758910234233,-151.0,0.00027579,2]
[387835621,1758910234246,-500.0,0.00027579,2]
[387835622,1758910234261,-642.0,0.00027579,2]
[387835623,1758910234281,-151.0,0.00027579,2]
[387835624,1758910234296,-151.0,0.00027579,2]
[387835625,1758910234312,-151.0,0.00027579,2]
[387835626,1758910234327,-1500.0,0.00027668,5]
[387835627,1758910234341,-1002.66891558,0.00027821,5]
[387835628,1758910234356,-500.0,0.00027853,2]
[387835629,1758910234371,-216.99034262,0.00027853,2]
[387835630,1758910234385,-500.0,0.00027853,2]
[387835631,1758910234401,-151.0,0.00027853,2]
[387835632,1758910234416,-500.0,0.00027853,2]
[387835633,1758910234431,-642.0,0.00027853,2]
[387835634,1758910234445,-151.0,0.00027853,2]
[387835635,1758910234459,-301.67561036,0.00027853,2]
[387835636,1758910234474,-151.0,0.00027853,2]
[387835637,1758910234489,-507.19797718,0.00027873,5]
[387835638,1758910234503,-500.0,0.00027873,5]
[387835639,1758910234517,-500.0,0.00027873,5]
[387835640,1758910234531,-500.0,0.00027873,5]
[387835641,1758910234545,-500.0,0.00027873,5]
[387835642,1758910234560,-410.57779206,0.00027873,5]
[387835643,1758910234574,-500.0,0.00027873,5]
[387835644,1758910234588,-500.0,0.00027873,5]
[387835645,1758910234602,-500.0,0.00027873,5]
[387835646,1758910234616,-500.0,0.00027873,2]
[387835647,1758910234630,-641.69,0.00027909,10]
[387835648,1758910234645,-500.9810205,0.00027919,5]
[387835649,1758910234659,-500.0,0.00027919,5]
[387835650,1758910234673,-151.0,0.00027922,2]
[387835653,1758910234687,-246.33756732,0.00027922,2]
[387835655,1758910234702,-151.0,0.00027922,2]
[387835658,1758910234716,-151.0,0.00027922,2]
[387835660,1758910234730,-500.0,0.00027922,2]
[387835662,1758910234744,-151.0,0.00027922,2]
[387835665,1758910234758,-151.0,0.00027922,2]
[387835667,1758910234772,-151.0,0.00027922,2]
[387835670,1758910234787,-151.0,0.00027922,2]
[387835672,1758910234802,-236.04592785,0.00027922,2]
[387835675,1758910234815,-500.0,0.00027977,5]
[387835677,1758910234824,-500.0,0.00027977,2]
[387835679,1758910234834,-500.0,0.00027977,5]
[387835681,1758910234843,-500.0,0.00027977,5]
[387835683,1758910234853,-1131.18,0.00028,2]
[387835685,1758910234862,-260.0,0.00028015,2]
[387835687,1758910234871,-500.0,0.00028053,5]
[387835700,1758910235059,-317.29972179,0.00028053,5]
[387835701,1758910235081,-504.04200691,0.00028053,5]
[387835702,1758910235095,-500.0,0.00028053,5]
[387835703,1758910235105,-2000.0,0.00028116,5]
[387835704,1758910235115,-2000.0,0.00028116,5]
[387835705,1758910235124,-2000.0,0.00028116,5]
[387835706,1758910235134,-716.13437948,0.00028116,5]
[387835724,1758910235384,-567.57004548,0.00028116,5]
[387835726,1758910235394,-100.25493736,0.00028116,5]
[387835730,1758910235429,-1068.63348662,0.00028116,5]
[387835804,1758910238443,-702.38378667,0.00026473,2]
[387835805,1758910238496,-7082.32539756,0.00026473,2]
[387835806,1758910238637,-771.80399726,0.00026473,2]
[387835807,1758910238649,-1512.67597889,0.00026473,2]
[387835808,1758910238661,-3217.4428109,0.00026473,2]
[387835809,1758910238672,-1529.81688329,0.00026473,2]
[387835810,1758910238683,-2191.31827454,0.00026473,2]
[387835811,1758910238695,-690.50866658,0.00026473,2]
[387835812,1758910238706,-1088.47541768,0.00026473,2]
[387835813,1758910238723,-2384.62913002,0.00026473,2]
[387835814,1758910238733,-500.0,0.0002702,2]
[387835815,1758910238742,-283.17719691,0.00027021,2]
[387835816,1758910238752,-939.90423666,0.00028116,5]
[387835817,1758910238761,-250.0,0.00028121,5]
[387835818,1758910238770,-502.37428074,0.00028121,5]
[387835819,1758910238779,-1000.0,0.00028121,5]
[387835820,1758910238788,-507.55375454,0.00028121,5]
[387835821,1758910238797,-502.26813551,0.00028121,5]
[387835822,1758910238807,-1000.0,0.00028121,5]
[387835823,1758910238816,-263.41291454,0.00028121,5]
[387835824,1758910238825,-1000.0,0.00028121,5]
[387835825,1758910238835,-1000.0,0.00028121,5]
[387835826,1758910238844,-503.11153155,0.00028121,5]
[387835827,1758910238854,-1000.0,0.00028121,5]
[387835828,1758910238863,-500.0,0.00028127,2]
[387835829,1758910238873,-619.15895183,0.00028127,2]
[387835830,1758910238882,-151.0,0.00028127,2]
[387835831,1758910238895,-500.0,0.00028127,2]
[387835832,1758910238916,-642.0,0.00028127,2]
[387835833,1758910238931,-151.0,0.00028127,2]
[387835834,1758910238941,-151.0,0.00028127,2]
[387835835,1758910238950,-1680.0,0.00028139,2]
[387835836,1758910238959,-1131.18,0.0002814,2]
[387835837,1758910238969,-44311.8720887,0.00028186,2]
[387835838,1758910238980,-151.0,0.00028196,2]
[387835839,1758910238993,-151.0,0.00028196,2]
[387835840,1758910239002,-500.0,0.00028196,2]
[387835841,1758910239012,-151.0,0.00028196,2]
[387835842,1758910239022,-151.0,0.00028196,2]
[387835843,1758910239031,-151.59310519,0.00028196,2]
[387835844,1758910239041,-151.93961096,0.00028196,2]
[387835845,1758910239051,-2000.0,0.00028216,5]
[387835846,1758910239062,-199.0,0.00028219,14]
[387835847,1758910239071,-1131.18,0.0002828,2]
[387835848,1758910239081,-221.91499038,0.00028366,2]
[387835849,1758910239090,-500.0,0.00028401,2]
[387835850,1758910239099,-249.07532585,0.00028401,2]
[387835851,1758910239108,-344.16691756,0.00028401,2]
[387835852,1758910239118,-642.0,0.00028401,2]
[387835853,1758910239127,-151.0,0.00028401,2]
[387835854,1758910239136,-293.96223725,0.00028401,2]
[387835855,1758910239146,-1000.0,0.00028421,5]
[387835856,1758910239155,-1000.0,0.00028421,5]
[387835857,1758910239164,-502.09659176,0.00028421,5]
[387835858,1758910239174,-505.16391587,0.00028421,5]
[387835859,1758910239182,-913.4969928,0.00028421,5]
[387835860,1758910239191,-470.04047811,0.00028421,5]
[387835861,1758910239200,-1000.0,0.00028421,5]
[387835862,1758910239210,-501.54966027,0.00028421,2]
[387835863,1758910239219,-1000.0,0.00028467,5]
[387835864,1758910239228,-151.0,0.0002847,2]
[387835865,1758910239238,-151.0,0.0002847,2]
[387835866,1758910239247,-304.37485388,0.0002847,2]
[387835867,1758910239257,-151.0,0.0002847,2]
[387835868,1758910239266,-500.0,0.00028473,5]
[387835869,1758910239275,-500.0,0.00028473,5]
[387835870,1758910239284,-234.10359242,0.00028473,5]
[387835871,1758910239294,-524.12017991,0.00028504,5]
[387835872,1758910239303,-500.0,0.00028504,5]
[387835873,1758910239312,-500.0,0.00028504,5]
[387835874,1758910239322,-500.0,0.00028504,5]
[387835875,1758910239331,-1000.0,0.00028525,5]
[387835876,1758910239340,-1000.0,0.00028525,5]
[387835877,1758910239350,-1000.0,0.00028525,2]
[387835878,1758910239359,-1000.0,0.00028525,5]
[387835879,1758910239368,-360.0,0.00028563,2]
[387835880,1758910239377,-501.51958764,0.00028601,5]
[387835881,1758910239387,-1000.0,0.00028601,5]
[387835882,1758910239396,-2500.0,0.00028664,5]
[387835883,1758910239405,-1020.77435939,0.00028664,5]
[387835884,1758910239415,-2500.0,0.00028664,5]
[387835885,1758910239423,-350.0,0.00028668,5]
[387835886,1758910239432,-1004.93551467,0.00028668,5]
[387835887,1758910239442,-504.17753444,0.00028668,5]
[387835888,1758910239451,-1500.0,0.00028668,5]
[387835889,1758910239460,-1500.0,0.00028668,5]
[387835890,1758910239469,-502.63320567,0.00028668,5]
[387835891,1758910239478,-535.21103886,0.00028673,5]
[387835892,1758910239488,-500.0,0.00028673,5]
[387835893,1758910239498,-500.0,0.00028673,5]
[387835894,1758910239507,-500.0,0.00028673,5]
[387835895,1758910239516,-500.0,0.00028673,5]
[387835896,1758910239525,-211.87350502,0.00028673,5]
[387835897,1758910239534,-500.0,0.00028673,5]
[387835898,1758910239543,-504.57546439,0.00028673,5]
[387835899,1758910239553,-500.0,0.00028673,5]
[387835900,1758910239562,-500.0,0.00028673,5]
[387835901,1758910239571,-503.32217492,0.00028673,5]
[387835902,1758910239581,-500.0,0.00028673,5]
[387835903,1758910239590,-500.0,0.00028675,2]
[387835904,1758910239599,-642.0,0.00028675,2]
[387835905,1758910239609,-293.90162727,0.00028744,2]
[387835906,1758910239618,-294.14406961,0.00028744,2]
[387835907,1758910239627,-151.0,0.00028744,2]
[387835908,1758910239637,-2500.0,0.00028764,5]
[387835909,1758910239647,-330.79714783,0.00028858,2]
[387835910,1758910239656,-199.0,0.00028904,15]
[387835911,1758910239665,-1549.28,0.00028948,3]
[387835912,1758910239675,-774.64,0.00028948,3]
[387835913,1758910239684,-387.32,0.00028948,3]
[387835914,1758910239694,-193.66,0.00028948,3]
[387835915,1758910239703,-581.02,0.00028948,3]
[387835916,1758910239712,-500.0,0.00028949,2]
[387835917,1758910239722,-642.0,0.00028949,2]
[387835918,1758910239732,-2365.78,0.00028958,3]
[387835919,1758910239742,-1500.0,0.00028968,5]
[387835920,1758910239751,-600.51247353,0.00028968,5]
[387835921,1758910239761,-1500.0,0.00028968,5]
[387835922,1758910239770,-44311.8720887,0.00029005,2]
[387835923,1758910239779,-587.0,0.00029005,2]
[387835924,1758910239789,-587.0,0.00029005,2]
[387835925,1758910239798,-587.0,0.00029005,2]
[387835926,1758910239807,-587.0,0.00029005,2]
[387835927,1758910239817,-1500.0,0.00029014,5]
[387835928,1758910239826,-505.28775606,0.00029021,5]
[387835929,1758910239835,-1000.0,0.00029021,5]
[387835930,1758910239845,-272.14033672,0.00029047,11]
[387835931,1758910239854,-378.67295546,0.00029052,5]
[387835932,1758910239864,-502.57336099,0.00029052,5]
[387835933,1758910239873,-1000.0,0.00029052,5]
[387835934,1758910239882,-1500.0,0.00029073,5]
[387835935,1758910239890,-1181.38273718,0.00029073,5]
[387835936,1758910239899,-1524.47369206,0.00029073,5]
[387835937,1758910239908,-1500.0,0.00029073,2]
[387835938,1758910239918,-460.0,0.00029111,2]
[387835939,1758910239927,-1155.67925175,0.00029149,5]